{"text_format":"1","workbook":"xlsx","n_sheets":2,"sheets":["Course selection list","Study program (Form 2)"],"not_rendered":{"charts":0,"images":1,"macros":1,"external_links":0,"defined_names":2,"comments":0,"pivot_tables":0},"unopened":[],"bounds":{"document_bytes":16777216,"sheet_cells":100000,"rows_first":2000,"rows_last":500,"rows_between":2000,"halvings":0,"cell_chars":16384,"cell_head_chars":4096},"cells_cut":0,"cells_raw":0,"read":"whole","date_system":"1900"}

{"sheet":"Course selection list","index":0,"n_rows":107,"n_cols":12,"rows_kept":107,"cut":false,"hidden":false,"merged":[[8,6,8,9],[32,1,33,1],[24,1,27,1],[93,3,94,3],[32,0,33,0],[24,0,25,0],[28,1,29,1],[26,0,27,0],[93,11,94,11],[32,11,33,11],[24,11,27,11]]}
["Planning sheet HTE Study Program 2022/2023"]
["Please enable the script. It automatically generates the required Study program form for you to print."]
["Select courses by checking the relevant boxes. Total ECTS and ECTS per teaching quarter can be found at the end of the table (shown in split screen) to help you balance"]
[" your programme. Specific focus areas within HTE can be chosen with relevant courses. These are: "]
["Mechatronic System Design (MSD), Engineering Mechanics (EM), Engineering Dynamics (ED), Micro Nano Engineering (MNE) and Optics for Technology (OPT)."]
["The 'Study program invalid' text is displayed if there is a violation with the programme requirements.  ",null,null,null,"Tekst in red or"," redish  background indicates the problem."]
["After selecting your course programme, go to the second sheet 'Study program (Form 2)' which contains your course selection in the required format. "]
["Finish filling out this form (personal information, possible focus area) and print the form (paper or pdf) for submission."]
[null,"Study program invalid",null,null,null,null,"Study load per quarter ",null,null,null,{"$f":"AND(F104>=60,COUNTIFS(K11:K21,TRUE)>=5,COUNTIFS(K24:K42,TRUE)=1,COUNTIFS(K48:K50,TRUE)>=3,COUNTIFS(K55:K67,TRUE)>=3)","v":false}]
["Course Code","ME Core courses (complete to minimum of 5)",null,null,"Quarter","ECTS","Q1","Q2","Q3","Q4","Select"]
["ME46006","Physics for Mechanical Engineers*",null,"þ","Q1",4,4,null,null,null,true,"  obligatory for ME_HTE"]
["ME46055","Engineering Dynamics*",null,"þ","Q1",4,4,null,null,null,true,"  obligatory for ME_HTE"]
["ME46085","Mechatronic System Design*",null,"þ","Q2",4,null,4,null,null,true,"  obligatory for ME_HTE"]
["ME46000","Nonlinear Mechanics",null,null,"Q2",4,null,4,null,null,false]
["ME46007","Measurement Technology",null,null,"Q3",3,null,null,3,null,false]
["SC42001","Control System Design",null,null,"Q1",{"$f":"SUM(G16:J16)","v":5},5,null,null,null,false]
["ME41055","Multibody Dynamics B",null,null,"Q3-Q4",4,null,null,2,2,false]
["ME44210 ","Drive & Energy Systems",null,null,"Q1",{"$f":"SUM(G18:J18)","v":3},3,null,null,null,false]
["ME41106","Intelligent Vehicles",null,null,"Q2",{"$f":"SUM(G19:J19)","v":5},null,5,null,null,false]
["ME45001","Advanced Heat Transfer",null,null,"Q1",{"$f":"SUM(G20:J20)","v":4},4,null,null,null,false]
["ME45042","Advanced Fluid Dynamics",null,null,"Q1-Q2",{"$f":"SUM(G21:J21)","v":5},2.5,2.5,null,null,false]
[null,null,null,null,null,null,null,null,null,null,{"$f":"SUMIF(K11:K21,TRUE,F11:F21)","v":12}]
["Course Code","ME Recommended Social courses (one course 3- 6 EC)**",null,null,"Quarter","ECTS","Q1","Q2","Q3","Q4",null," **"]
["TPM404B","Technology Entrepreneurship and Internationalization",null,null,"Q1",5,5,null,null,null,false]
["WM0320TU ","Ethics and Engineering","3 ECTS Q1",null,"Q1 ",{"$f":"SUM(G25:J25)","v":3},3,null,null,null,false,"  (course given in two quarters and in two versions)"]
[null,null,"3 ECTS Q3",null,"Q3",3,null,null,3,null,false]
["WM0329TU ",null,"6 ECTS Q1",null,"Q1 ",6,6,null,null,null,false]
[null,null,"6 ECTS Q3",null,"Q3",6,null,null,6,null,false]
["WM1401TU","Ethics of Healthcare Technologies","3 ECTS",null,"Q2",3,3,null,null,null,false]
["WM1402TU",null,"5 ECTS",null,"Q2",5,5,null,null,null,false]
["WM0801TU ","Introduction to Safety Science",null,null,"Q2",3,null,3,null,null,false]
["WM0353TU","Climate Ethics",null,null,"Q2",3,null,3,null,null,false]
["TPM420A ","Ready to Startup ","Q1-2",null,"Q1-Q2",6,3,3,null,null,false,"  (same course given in two semesters, read application procedure in the TUD studyguide!) "]
[null,null,"Q3-4",null,"Q3-Q4",6,null,null,3,3,false]
["TPM015B","Ethics of AI",null,null,"Q2",3,null,3,null,null,false]
["TPM416A ","Turning Technology into Business",null,null,"Q2",{"$f":"SUM(G36:J36)","v":6},null,6,null,null,false,"  (read application procedure in the TUD studyguide!)"]
["TBM022A","Technology, Innovation and Ethics for Companies",null,null,"Q2",5,null,5,null,null,false]
["WM0375TU","Ethics of Technological Risks",null,null,"Q3",3,null,null,3,null,false]
["RO47009","Robot & Society",null,null,"Q3",4,null,null,4,null,false]
["WM0349WB ","Philosophy of Engineering science and design",null,null,"Q4",{"$f":"SUM(G40:J40)","v":3},null,null,null,3,false]
["TPM024A ","Methods for Risk Analy. And Management",null,null,"Q4",{"$f":"SUM(G41:J41)","v":5},null,null,null,5,false]
["TPM013A","Environmental Ethics",null,null,"Q4",{"$f":"SUM(G42:J42)","v":5},null,null,null,5,false]
[]
["Course Code","ME_HTE Obligatory Course "]
["ME46110","Introlab ",null,"þ"," ",{"$f":"SUM(G45:J45)","v":2},0.5,0.5,0.5,0.5,true]
[]
["Course Code","ME_HTE Track courses I (choose at least 3)",null,null,"Quarter","ECTS","Q1","Q2","Q3","Q4"]
["ME46015 ","Precision Mechanism Design",null,null,"Q3-Q4",{"$f":"SUM(G48:J48)","v":4},null,null,2,2,false]
["ME46020 ","Micro- & Nanosystems Design & Fab.",null,null,"Q3",{"$f":"SUM(G49:J49)","v":4},null,null,4,null,false]
["ME46060 ","Engineering Optimization",null,null,"Q4",{"$f":"SUM(G50:J50)","v":3},null,null,null,3,false]
["ME46070 ","Fundamentals of Mechanical Analysis",null,null,"Q3",{"$f":"SUM(G51:J51)","v":4},null,null,4,null,false]
["ME46300 ","Optics",null,null,"Q1",{"$f":"SUM(G52:J52)","v":4},4,null,null,null,false]
[null,null,null,null,null,null,null,null,null,null,{"$f":"SUMIF(K47:K52,TRUE,F45:F50)","v":0}]
["Course Code","ME_HTE Track courses II (choose at least 3)",null,null,"Quarter","ECTS","Q1","Q2","Q3","Q4"]
["ME46115 ","Compliant Mechanisms",null,null,"Q1-Q2",{"$f":"SUM(G55:J55)","v":4},2,2,null,null,false]
["ME46310","Opto-Mechatronics",null,null,"Q1-Q2",4,2,2,null,null,false]
["MS43325","Application of Materials in High-Tech Eng.",null,null,"Q2",3,null,3,null,null,false]
["ME46095","Multiphysics Modelling using COMSOL ",null,null,"Q3",{"$f":"SUM(G58:J58)","v":4},null,null,4,null,false,"(course not given in 2022-2023. As an alternative see elective ET4260)"]
["ME46035 ","Stability of Thin-Walled Structures",null,null,"Q3",{"$f":"SUM(G59:J59)","v":4},null,null,4,null,false]
["ME46050","Advanced Finite Element Methods",null,null,"Q3",{"$f":"SUM(G60:J60)","v":4},null,null,4,null,false]
["ME46010 ","Intro to Nanoscience and Technology",null,null,"Q3",{"$f":"SUM(G61:J61)","v":3},null,null,{"$f":"3","v":3},null,false]
["ME46065","Thin Film Materials",null,null,"Q3",3,null,null,3,null,false]
["ME46041","Experimental Dynamics",null,null,"Q3-Q4",4,null,null,2,2,false]
["ME46120","Predictive Modelling",null,null,"Q3",{"$f":"SUM(G64:J64)","v":4},null,null,4,null,false,"  "]
["ME46072 ","Nonlinear Dynamics",null,null,"Q4",{"$f":"SUM(G65:J65)","v":4},null,null,null,4,false]
["ME46125","Micro and Nanofabrication for Cell Biology and Tissue Engineering",null,null,"Q4",3,null,null,null,3,false]
["ME46025 ","Manufacturing for the Micro-Nano Scale",null,null,"Q4",3,null,null,null,3,false]
[]
["Course Code","Common Electives",null,null,"Quarter","ECTS","Q1","Q2","Q3","Q4"]
["ME41096","Bio Inspired Design",null,null,"Q1-Q2",{"$f":"SUM(G70:J70)","v":5},2,3,null,null,false]
["ME46080","Enriched Finite Element Methods",null,null,"Q4",4,null,null,null,4,false]
["MS43100","Science of Failure ",null,null,"Q3",3,null,null,3,null,false]
["MS43210","Advanced Characterisation",null,null,"Q4",4,null,null,null,4,false]
["AE4117","Fluid-structures interaction ",null,null,"Q3",4,null,null,4,null,false]
["AE4880","Optical Space Sensors",null,null,"Q3",4,null,null,4,null,false]
["AE4ASM104","Sensor Materials",null,null,"Q3",3,null,null,3,null,false]
["AE4ASM516","Materials selection in mechanical design",null,null,"Q4",3,null,null,null,3,false]
["AE4S12","Space Systems Engineering",null,null,"Q1-Q2",3,1.5,1.5,null,null,false]
["AP3122","Advanced Optical Imaging",null,null,"Q1-Q2",6,3,3,null,null,false]
["AP3391","Geometrical Optics ",null,null,"Q4",6,null,null,null,6,false]
["AP3401","Introduction to Charged Particle Optics",null,null,"Q3-Q4",6,null,null,3,3,false]
["BM41155","3D printing",null,null,"Q3",4,null,null,4,null,false]
["CIE5123","Introduction to the Finite Element Method",null,null,"Q3",4,null,null,4,null,false]
["CIE5142","Computational methods in non-linear solid mechanics",null,null,"Q1",3,3,null,null,null,false]
["CIE5145","Random vibrations",null,null,"Q1",4,null,null,null,4,false]
["ET4117","Electrical Machines and Drives",null,null,"Q2",4,null,4,null,null,false]
["ET4257","Sensors and Actuators",null,null,"Q2",4,null,4,null,null,false]
["ET4260","Microsystem Integration",null,null,"Q4",4,null,null,null,4,false,"content replacement for ME46095 'Multiphysics Modelling using COMSOL'"]
["ET4277","Microelectronics Reliability",null,null,"Q3",4,null,null,4,null,false]
["ET4391","Advanced Microelectronics packaging ",null,null,"Q3",3,null,null,3,null,false]
["RO47019","Intelligent Control Systems",null,null,"Q3",4,null,null,4,null,false]
["SC42125","Model Predictive Control",null,null,"Q3",{"$f":"SUM(G92:J92)","v":4},null,null,4,null,false]
["SC42145","Robust Control",null,null,"Q2",3,null,3,null,null,false]
["SC42030","Control for High Resolution imaging ",null,null,"Q4",3,null,null,null,3,false,"   (combined courses)"]
["SC42065","Adaptive Optics Design Project",null,null,"Q4",3,null,null,null,3,{"$f":"K94","v":false}]
["SC42061","Nonlinear Systems Theory",null,null,"Q2",3,null,3,null,null,false]
["WI4014TU","Numerical analysis",null,null,"Q1-Q2",6,3,3,null,null,false]
["WI4260TU","Scientific Programming for Engineers",null,null,"Q3",3,null,null,3,null,false]
["WI4019","Non-linear Differential Equations",null,null,"Q3-Q4",{"$f":"SUM(G99:J99)","v":6},3,3,null,null,false]
[null,null,null,null,null,{"$f":"SUM(G100:J100)","v":0},null,null,null,null,false,"  (add an unlisted elective course)"]
[null,null,null,null,null,{"$f":"SUM(G101:J101)","v":0},null,null,null,null,false,"  (add an unlisted elective course)"]
[null,null,null,null,null,{"$f":"SUM(G102:J102)","v":0},null,null,null,null,false,"  (add an unlisted elective course)"]
[null,"Study program invalid",null,null,null,"ECTS","Q1","Q2","Q3","Q4",{"$f":"SUMIF(K70:K102,TRUE,F70:F102)","v":0}]
[null,null,null,null,"Total ECTS (≥ 60) ",{"$f":"SUM(G104:J104)","v":14},{"$f":"SUMIF($K$11:$K$103,TRUE,G11:G103)","v":8.5},{"$f":"SUMIF($K$11:$K$103,TRUE,H11:H103)","v":4.5},{"$f":"SUMIF($K$11:$K$103,TRUE,I11:I103)","v":0.5},{"$f":"SUMIF($K$11:$K$103,TRUE,J11:J103)","v":0.5},{"$f":"SUM(K11:K103)","v":12}]
[]
["** keep an eye on your availablity and the application demands, when choosing a social course, make sure to check the description in the studyguide "]
[" "]

{"sheet":"Study program (Form 2)","index":1,"n_rows":129,"n_cols":10,"rows_kept":129,"cut":false,"hidden":false,"merged":[]}
["Student name",null,null," ","Focus HTE:",null,null,null,0,0]
["Student number",null,null," ","e-mail",null,null,null,0,"none"]
[null,null,null,null,null,null,null,null,0,"HTE-MNE"]
[null,null,"     ",null,null,null,null,null,0,"HTE-EM"]
["COURSES ME Core courses (Complete to a minimum of 5) ",null,null,null,null,null,null,null,0,"HTE-ED"]
[null,"Course Code","Course name",null,null,null,"EC",null,0,"HTE-MSD"]
[null,{"$f":"'Course selection list'!A11","v":"ME46006"},{"$f":"'Course selection list'!B11","v":"Physics for Mechanical Engineers*"},null,null,null,{"$f":"'Course selection list'!F11","v":4},{"$f":"'Course selection list'!K11","v":true},0,"HTE-OPT"]
[null,{"$f":"'Course selection list'!A12","v":"ME46055"},{"$f":"'Course selection list'!B12","v":"Engineering Dynamics*"},null,null,null,{"$f":"'Course selection list'!F12","v":4},{"$f":"'Course selection list'!K12","v":true},0]
[null,{"$f":"'Course selection list'!A13","v":"ME46085"},{"$f":"'Course selection list'!B13","v":"Mechatronic System Design*"},null,null,null,{"$f":"'Course selection list'!F13","v":4},{"$f":"'Course selection list'!K13","v":true},0]
[null,{"$f":"'Course selection list'!A14","v":"ME46000"},{"$f":"'Course selection list'!B14","v":"Nonlinear Mechanics"},null,null,null,{"$f":"IF(H10,'Course selection list'!F14,\"\")","v":""},{"$f":"'Course selection list'!K14","v":false},0]
[null,{"$f":"'Course selection list'!A15","v":"ME46007"},{"$f":"'Course selection list'!B15","v":"Measurement Technology"},null,null,null,{"$f":"IF(H11,'Course selection list'!F15,\"\")","v":""},{"$f":"'Course selection list'!K15","v":false},0]
[null,{"$f":"'Course selection list'!A16","v":"SC42001"},{"$f":"'Course selection list'!B16","v":"Control System Design"},null,null,null,{"$f":"IF(H12,'Course selection list'!F16,\"\")","v":""},{"$f":"'Course selection list'!K16","v":false},0]
[null,{"$f":"'Course selection list'!A17","v":"ME41055"},{"$f":"'Course selection list'!B17","v":"Multibody Dynamics B"},null,null,null,{"$f":"IF(H13,'Course selection list'!F17,\"\")","v":""},{"$f":"'Course selection list'!K17","v":false},0]
[null,{"$f":"'Course selection list'!A18","v":"ME44210 "},{"$f":"'Course selection list'!B18","v":"Drive & Energy Systems"},null,null,null,{"$f":"IF(H14,'Course selection list'!F18,\"\")","v":""},{"$f":"'Course selection list'!K18","v":false},0]
[null,{"$f":"'Course selection list'!A19","v":"ME41106"},{"$f":"'Course selection list'!B19","v":"Intelligent Vehicles"},null,null,null,{"$f":"IF(H15,'Course selection list'!F19,\"\")","v":""},{"$f":"'Course selection list'!K19","v":false},0]
[null,{"$f":"'Course selection list'!A20","v":"ME45001"},{"$f":"'Course selection list'!B20","v":"Advanced Heat Transfer"},null,null,null,{"$f":"IF(H16,'Course selection list'!F20,\"\")","v":""},{"$f":"'Course selection list'!K20","v":false},0]
[null,{"$f":"'Course selection list'!A21","v":"ME45042"},{"$f":"'Course selection list'!B21","v":"Advanced Fluid Dynamics"},null,null,null,{"$f":"IF(H17,'Course selection list'!F21,\"\")","v":""},{"$f":"'Course selection list'!K21","v":false},0]
[null,null,null,null,null,"Total ",{"$f":"SUMIF(H7:H17,TRUE,G7:G17)","v":12},true,0]
[null,"*obligatory for ME_HTE",null,null,null,null,null,null,0]
["COURSES ME Non-Technical course (select a course 3-6 EC) For options see studiegids.tudelft.nl ",null,null,null,null,null,null,true,0]
[null,"Course Code","Course name",null,null,null,"EC",true,0]
[null,{"$f":"'Course selection list'!A24","v":"TPM404B"},{"$f":"'Course selection list'!B24","v":"Technology Entrepreneurship and Internationalization"},null,null,null,{"$f":"'Course selection list'!F24","v":5},{"$f":"'Course selection list'!K24","v":false},{"$f":"IF(H22=TRUE,0,$J$1)","v":0}]
[null,{"$f":"'Course selection list'!A25","v":"WM0320TU "},{"$f":"'Course selection list'!B25","v":"Ethics and Engineering"},null,null,null,{"$f":"'Course selection list'!F25","v":3},{"$f":"'Course selection list'!K25","v":false},{"$f":"IF(H23=TRUE,0,$J$1)","v":0}]
[null,{"$f":"'Course selection list'!A25","v":"WM0320TU "},{"$f":"'Course selection list'!B25","v":"Ethics and Engineering"},null,null,null,{"$f":"'Course selection list'!F26","v":3},{"$f":"'Course selection list'!K26","v":false},0]
[null,{"$f":"'Course selection list'!A27","v":"WM0329TU "},{"$f":"'Course selection list'!B25","v":"Ethics and Engineering"},null,null,null,{"$f":"'Course selection list'!F27","v":6},{"$f":"'Course selection list'!K27","v":false},0]
[null,{"$f":"'Course selection list'!A27","v":"WM0329TU "},{"$f":"'Course selection list'!B25","v":"Ethics and Engineering"},null,null,null,{"$f":"'Course selection list'!F28","v":6},{"$f":"'Course selection list'!K28","v":false},0]
[null,{"$f":"'Course selection list'!A29","v":"WM1401TU"},{"$f":"'Course selection list'!B29","v":"Ethics of Healthcare Technologies"},null,null,null,{"$f":"'Course selection list'!F29","v":3},{"$f":"'Course selection list'!K29","v":false},0]
[null,{"$f":"'Course selection list'!A30","v":"WM1402TU"},{"$f":"'Course selection list'!B29","v":"Ethics of Healthcare Technologies"},null,null,null,{"$f":"'Course selection list'!F30","v":5},{"$f":"'Course selection list'!K30","v":false},0]
[null,{"$f":"'Course selection list'!A31","v":"WM0801TU "},{"$f":"'Course selection list'!B31","v":"Introduction to Safety Science"},null,null,null,{"$f":"'Course selection list'!F31","v":3},{"$f":"'Course selection list'!K31","v":false},0]
[null,{"$f":"'Course selection list'!A32","v":"WM0353TU"},{"$f":"'Course selection list'!B32","v":"Climate Ethics"},null,null,null,{"$f":"'Course selection list'!F32","v":3},{"$f":"'Course selection list'!K32","v":false},0]
[null,{"$f":"'Course selection list'!A33","v":"TPM420A "},{"$f":"'Course selection list'!B33","v":"Ready to Startup "},null,null,null,{"$f":"'Course selection list'!F33","v":6},{"$f":"'Course selection list'!K33","v":false},{"$f":"IF(H31=TRUE,0,$J$1)","v":0}]
[null,{"$f":"'Course selection list'!A33","v":"TPM420A "},{"$f":"'Course selection list'!B33","v":"Ready to Startup "},null,null,null,{"$f":"'Course selection list'!F34","v":6},{"$f":"'Course selection list'!K34","v":false},0]
[null,{"$f":"'Course selection list'!A35","v":"TPM015B"},{"$f":"'Course selection list'!B35","v":"Ethics of AI"},null,null,null,{"$f":"'Course selection list'!F35","v":3},{"$f":"'Course selection list'!K35","v":false},0]
[null,{"$f":"'Course selection list'!A36","v":"TPM416A "},{"$f":"'Course selection list'!B36","v":"Turning Technology into Business"},null,null,null,{"$f":"'Course selection list'!F36","v":6},{"$f":"'Course selection list'!K36","v":false},0]
[null,{"$f":"'Course selection list'!A37","v":"TBM022A"},{"$f":"'Course selection list'!B37","v":"Technology, Innovation and Ethics for Companies"},null,null,null,{"$f":"'Course selection list'!F37","v":5},{"$f":"'Course selection list'!K37","v":false},0]
[null,{"$f":"'Course selection list'!A38","v":"WM0375TU"},{"$f":"'Course selection list'!B38","v":"Ethics of Technological Risks"},null,null,null,{"$f":"'Course selection list'!F38","v":3},{"$f":"'Course selection list'!K38","v":false},0]
[null,{"$f":"'Course selection list'!A39","v":"RO47009"},{"$f":"'Course selection list'!B39","v":"Robot & Society"},null,null,null,{"$f":"'Course selection list'!F39","v":4},{"$f":"'Course selection list'!K39","v":false},{"$f":"IF(H37=TRUE,0,$J$1)","v":0}]
[null,{"$f":"'Course selection list'!A40","v":"WM0349WB "},{"$f":"'Course selection list'!B40","v":"Philosophy of Engineering science and design"},null,null,null,{"$f":"'Course selection list'!F40","v":3},{"$f":"'Course selection list'!K40","v":false},0]
[null,{"$f":"'Course selection list'!A41","v":"TPM024A "},{"$f":"'Course selection list'!B41","v":"Methods for Risk Analy. And Management"},null,null,null,{"$f":"'Course selection list'!F41","v":5},{"$f":"'Course selection list'!K41","v":false},0]
[null,{"$f":"'Course selection list'!A42","v":"TPM013A"},{"$f":"'Course selection list'!B42","v":"Environmental Ethics"},null,null,null,{"$f":"'Course selection list'!F42","v":5},{"$f":"'Course selection list'!K42","v":false},0]
[null,null,null,null,null,"Total ",{"$f":"SUMIF(H22:H40,TRUE,G22:G40)","v":0},true,0]
["COURSES ME-HTE Obligatory courses I (2 EC) ",null,null,null,null,null,null,true,0]
[null,"Course Code","Course name",null,null,null,"EC",true,0]
[null,{"$f":"'Course selection list'!A45","v":"ME46110"},{"$f":"'Course selection list'!B45","v":"Introlab "},null,null,null,{"$f":"'Course selection list'!F45","v":2},{"$f":"'Course selection list'!K45","v":true},{"$f":"IF(H44=TRUE,0,$J$1)","v":0}]
[null,null,null,null,null,"Total ",{"$f":"SUMIF(H44,TRUE,G44:G45)","v":2},true,0]
["COURSES ME-HTE Track courses I (choose at least 3) ",null,null,null,null,null,null,true,0]
[null,"Course Code","Course name",null,null,null,"EC",true,0]
[null,{"$f":"'Course selection list'!A48","v":"ME46015 "},{"$f":"'Course selection list'!B48","v":"Precision Mechanism Design"},null,null,null,{"$f":"IF(H48,'Course selection list'!F48,\"\")","v":""},{"$f":"'Course selection list'!K48","v":false},0]
[null,{"$f":"'Course selection list'!A49","v":"ME46020 "},{"$f":"'Course selection list'!B49","v":"Micro- & Nanosystems Design & Fab."},null,null,null,{"$f":"IF(H49,'Course selection list'!F49,\"\")","v":""},{"$f":"'Course selection list'!K49","v":false},0]
[null,{"$f":"'Course selection list'!A50","v":"ME46060 "},{"$f":"'Course selection list'!B50","v":"Engineering Optimization"},null,null,null,{"$f":"IF(H50,'Course selection list'!F50,\"\")","v":""},{"$f":"'Course selection list'!K50","v":false},0]
[null,{"$f":"'Course selection list'!A51","v":"ME46070 "},{"$f":"'Course selection list'!B51","v":"Fundamentals of Mechanical Analysis"},null,null,null,{"$f":"IF(H51,'Course selection list'!F51,\"\")","v":""},{"$f":"'Course selection list'!K51","v":false},0]
[null,{"$f":"'Course selection list'!A52","v":"ME46300 "},{"$f":"'Course selection list'!B52","v":"Optics"},null,null,null,{"$f":"IF(H52,'Course selection list'!F52,\"\")","v":""},{"$f":"'Course selection list'!K52","v":false},0]
[null,null,null,null,null,"Total ",{"$f":"SUMIF(H48:H52,TRUE,G48:G52)","v":0},true,0]
["COURSES ME-HTE Track courses II (choose at least 3) ",null,null,null,null,null,null,true,0]
[null,"Course Code","Course name",null,null,null,"EC",true,0]
[null,{"$f":"'Course selection list'!A55","v":"ME46115 "},{"$f":"'Course selection list'!B55","v":"Compliant Mechanisms"},null,null,null,{"$f":"IF(H56,'Course selection list'!F55,\"\")","v":""},{"$f":"'Course selection list'!K55","v":false},0]
[null,{"$f":"'Course selection list'!A56","v":"ME46310"},{"$f":"'Course selection list'!B56","v":"Opto-Mechatronics"},null,null,null,{"$f":"IF(H57,'Course selection list'!F56,\"\")","v":""},{"$f":"'Course selection list'!K56","v":false},0]
[null,{"$f":"'Course selection list'!A57","v":"MS43325"},{"$f":"'Course selection list'!B57","v":"Application of Materials in High-Tech Eng."},null,null,null,{"$f":"IF(H58,'Course selection list'!F57,\"\")","v":""},{"$f":"'Course selection list'!K57","v":false},0]
[null,{"$f":"'Course selection list'!A58","v":"ME46095"},{"$f":"'Course selection list'!B58","v":"Multiphysics Modelling using COMSOL "},null,null,null,{"$f":"IF(H59,'Course selection list'!F58,\"\")","v":""},{"$f":"'Course selection list'!K58","v":false},0]
[null,{"$f":"'Course selection list'!A59","v":"ME46035 "},{"$f":"'Course selection list'!B59","v":"Stability of Thin-Walled Structures"},null,null,null,{"$f":"IF(H60,'Course selection list'!F59,\"\")","v":""},{"$f":"'Course selection list'!K59","v":false},0]
[null,{"$f":"'Course selection list'!A60","v":"ME46050"},{"$f":"'Course selection list'!B60","v":"Advanced Finite Element Methods"},null,null,null,{"$f":"IF(H61,'Course selection list'!F60,\"\")","v":""},{"$f":"'Course selection list'!K60","v":false},0]
[null,{"$f":"'Course selection list'!A61","v":"ME46010 "},{"$f":"'Course selection list'!B61","v":"Intro to Nanoscience and Technology"},null,null,null,{"$f":"IF(H62,'Course selection list'!F61,\"\")","v":""},{"$f":"'Course selection list'!K61","v":false},0]
[null,{"$f":"'Course selection list'!A62","v":"ME46065"},{"$f":"'Course selection list'!B62","v":"Thin Film Materials"},null,null,null,{"$f":"IF(H63,'Course selection list'!F62,\"\")","v":""},{"$f":"'Course selection list'!K62","v":false},0]
[null,{"$f":"'Course selection list'!A63","v":"ME46041"},{"$f":"'Course selection list'!B63","v":"Experimental Dynamics"},null,null,null,{"$f":"IF(H64,'Course selection list'!F63,\"\")","v":""},{"$f":"'Course selection list'!K63","v":false},0]
[null,{"$f":"'Course selection list'!A64","v":"ME46120"},{"$f":"'Course selection list'!B64","v":"Predictive Modelling"},null,null,null,{"$f":"IF(H65,'Course selection list'!F64,\"\")","v":""},{"$f":"'Course selection list'!K64","v":false},0]
[null,{"$f":"'Course selection list'!A65","v":"ME46072 "},{"$f":"'Course selection list'!B65","v":"Nonlinear Dynamics"},null,null,null,{"$f":"IF(H66,'Course selection list'!F65,\"\")","v":""},{"$f":"'Course selection list'!K65","v":false},0]
[null,{"$f":"'Course selection list'!A66","v":"ME46125"},{"$f":"'Course selection list'!B66","v":"Micro and Nanofabrication for Cell Biology and Tissue Engineering"},null,null,null,{"$f":"IF(H67,'Course selection list'!F66,\"\")","v":""},{"$f":"'Course selection list'!K66","v":false},0]
[null,{"$f":"'Course selection list'!A67","v":"ME46025 "},{"$f":"'Course selection list'!B67","v":"Manufacturing for the Micro-Nano Scale"},null,null,null,{"$f":"IF(H68,'Course selection list'!F67,\"\")","v":""},{"$f":"'Course selection list'!K67","v":false},0]
[null,null,null,null,null,"Total ",{"$f":"SUMIF(H56:H68,TRUE,G56:G68)","v":0},true,0]
["COURSES Recommended and elective courses",null,null,null,null,null,null,true,0]
[null,"Course Code","Course name",null,null,null,"EC",true,0]
[null,{"$f":"'Course selection list'!A70","v":"ME41096"},{"$f":"'Course selection list'!B70","v":"Bio Inspired Design"},null,null,null,{"$f":"'Course selection list'!F70","v":5},{"$f":"'Course selection list'!K70","v":false},{"$f":"IF(H72=TRUE,0,$J$1)","v":0}]
[null,{"$f":"'Course selection list'!A71","v":"ME46080"},{"$f":"'Course selection list'!B71","v":"Enriched Finite Element Methods"},null,null,null,{"$f":"'Course selection list'!F71","v":4},{"$f":"'Course selection list'!K71","v":false},0]
[null,{"$f":"'Course selection list'!A72","v":"MS43100"},{"$f":"'Course selection list'!B72","v":"Science of Failure "},null,null,null,{"$f":"'Course selection list'!F72","v":3},{"$f":"'Course selection list'!K72","v":false},0]
[null,{"$f":"'Course selection list'!A73","v":"MS43210"},{"$f":"'Course selection list'!B73","v":"Advanced Characterisation"},null,null,null,{"$f":"'Course selection list'!F73","v":4},{"$f":"'Course selection list'!K73","v":false},0]
[null,{"$f":"'Course selection list'!A74","v":"AE4117"},{"$f":"'Course selection list'!B74","v":"Fluid-structures interaction "},null,null,null,{"$f":"'Course selection list'!F74","v":4},{"$f":"'Course selection list'!K74","v":false},0]
[null,{"$f":"'Course selection list'!A75","v":"AE4880"},{"$f":"'Course selection list'!B75","v":"Optical Space Sensors"},null,null,null,{"$f":"'Course selection list'!F75","v":4},{"$f":"'Course selection list'!K75","v":false},0]
[null,{"$f":"'Course selection list'!A76","v":"AE4ASM104"},{"$f":"'Course selection list'!B76","v":"Sensor Materials"},null,null,null,{"$f":"'Course selection list'!F76","v":3},{"$f":"'Course selection list'!K76","v":false},0]
[null,{"$f":"'Course selection list'!A77","v":"AE4ASM516"},{"$f":"'Course selection list'!B77","v":"Materials selection in mechanical design"},null,null,null,{"$f":"'Course selection list'!F77","v":3},{"$f":"'Course selection list'!K77","v":false},0]
[null,{"$f":"'Course selection list'!A78","v":"AE4S12"},{"$f":"'Course selection list'!B78","v":"Space Systems Engineering"},null,null,null,{"$f":"'Course selection list'!F78","v":3},{"$f":"'Course selection list'!K78","v":false},0]
[null,{"$f":"'Course selection list'!A79","v":"AP3122"},{"$f":"'Course selection list'!B79","v":"Advanced Optical Imaging"},null,null,null,{"$f":"'Course selection list'!F79","v":6},{"$f":"'Course selection list'!K79","v":false},0]
[null,{"$f":"'Course selection list'!A80","v":"AP3391"},{"$f":"'Course selection list'!B80","v":"Geometrical Optics "},null,null,null,{"$f":"'Course selection list'!F80","v":6},{"$f":"'Course selection list'!K80","v":false},0]
[null,{"$f":"'Course selection list'!A81","v":"AP3401"},{"$f":"'Course selection list'!B81","v":"Introduction to Charged Particle Optics"},null,null,null,{"$f":"'Course selection list'!F81","v":6},{"$f":"'Course selection list'!K81","v":false},0]
[null,{"$f":"'Course selection list'!A82","v":"BM41155"},{"$f":"'Course selection list'!B82","v":"3D printing"},null,null,null,{"$f":"'Course selection list'!F82","v":4},{"$f":"'Course selection list'!K82","v":false},0]
[null,{"$f":"'Course selection list'!A83","v":"CIE5123"},{"$f":"'Course selection list'!B83","v":"Introduction to the Finite Element Method"},null,null,null,{"$f":"'Course selection list'!F83","v":4},{"$f":"'Course selection list'!K83","v":false},0]
[null,{"$f":"'Course selection list'!A84","v":"CIE5142"},{"$f":"'Course selection list'!B84","v":"Computational methods in non-linear solid mechanics"},null,null,null,{"$f":"'Course selection list'!F84","v":3},{"$f":"'Course selection list'!K84","v":false},0]
[null,{"$f":"'Course selection list'!A85","v":"CIE5145"},{"$f":"'Course selection list'!B85","v":"Random vibrations"},null,null,null,{"$f":"'Course selection list'!F85","v":4},{"$f":"'Course selection list'!K85","v":false},0]
[null,{"$f":"'Course selection list'!A86","v":"ET4117"},{"$f":"'Course selection list'!B86","v":"Electrical Machines and Drives"},null,null,null,{"$f":"'Course selection list'!F86","v":4},{"$f":"'Course selection list'!K86","v":false},0]
[null,{"$f":"'Course selection list'!A87","v":"ET4257"},{"$f":"'Course selection list'!B87","v":"Sensors and Actuators"},null,null,null,{"$f":"'Course selection list'!F87","v":4},{"$f":"'Course selection list'!K87","v":false},0]
[null,{"$f":"'Course selection list'!A88","v":"ET4260"},{"$f":"'Course selection list'!B88","v":"Microsystem Integration"},null,null,null,{"$f":"'Course selection list'!F88","v":4},{"$f":"'Course selection list'!K88","v":false},0]
[null,{"$f":"'Course selection list'!A89","v":"ET4277"},{"$f":"'Course selection list'!B89","v":"Microelectronics Reliability"},null,null,null,{"$f":"'Course selection list'!F89","v":4},{"$f":"'Course selection list'!K89","v":false},0]
[null,{"$f":"'Course selection list'!A90","v":"ET4391"},{"$f":"'Course selection list'!B90","v":"Advanced Microelectronics packaging "},null,null,null,{"$f":"'Course selection list'!F90","v":3},{"$f":"'Course selection list'!K90","v":false},0]
[null,{"$f":"'Course selection list'!A91","v":"RO47019"},{"$f":"'Course selection list'!B91","v":"Intelligent Control Systems"},null,null,null,{"$f":"'Course selection list'!F91","v":4},{"$f":"'Course selection list'!K91","v":false},0]
[null,{"$f":"'Course selection list'!A92","v":"SC42125"},{"$f":"'Course selection list'!B92","v":"Model Predictive Control"},null,null,null,{"$f":"'Course selection list'!F92","v":4},{"$f":"'Course selection list'!K92","v":false},{"$f":"IF(H94=TRUE,0,$J$1)","v":0}]
[null,{"$f":"'Course selection list'!A93","v":"SC42145"},{"$f":"'Course selection list'!B93","v":"Robust Control"},null,null,null,{"$f":"'Course selection list'!F93","v":3},{"$f":"'Course selection list'!K93","v":false},0]
[null,{"$f":"'Course selection list'!A94","v":"SC42030"},{"$f":"'Course selection list'!B94","v":"Control for High Resolution imaging "},null,null,null,{"$f":"'Course selection list'!F94","v":3},{"$f":"'Course selection list'!K94","v":false},0]
[null,{"$f":"'Course selection list'!A95","v":"SC42065"},{"$f":"'Course selection list'!B95","v":"Adaptive Optics Design Project"},null,null,null,{"$f":"'Course selection list'!F95","v":3},{"$f":"'Course selection list'!K95","v":false},0]
[null,{"$f":"'Course selection list'!A96","v":"SC42061"},{"$f":"'Course selection list'!B96","v":"Nonlinear Systems Theory"},null,null,null,{"$f":"'Course selection list'!F96","v":3},{"$f":"'Course selection list'!K96","v":false},0]
[null,{"$f":"'Course selection list'!A97","v":"WI4014TU"},{"$f":"'Course selection list'!B97","v":"Numerical analysis"},null,null,null,{"$f":"'Course selection list'!F97","v":6},{"$f":"'Course selection list'!K97","v":false},{"$f":"IF(H99=TRUE,0,$J$1)","v":0}]
[null,{"$f":"'Course selection list'!A98","v":"WI4260TU"},{"$f":"'Course selection list'!B98","v":"Scientific Programming for Engineers"},null,null,null,{"$f":"'Course selection list'!F98","v":3},{"$f":"'Course selection list'!K98","v":false},0]
[null,{"$f":"'Course selection list'!A99","v":"WI4019"},{"$f":"'Course selection list'!B99","v":"Non-linear Differential Equations"},null,null,null,{"$f":"'Course selection list'!F99","v":6},{"$f":"'Course selection list'!K99","v":false},0]
[null,{"$f":"'Course selection list'!A100","v":0},{"$f":"'Course selection list'!B100","v":0},null,null,null,{"$f":"'Course selection list'!F100","v":0},{"$f":"'Course selection list'!K100","v":false},0]
[null,{"$f":"'Course selection list'!A101","v":0},{"$f":"'Course selection list'!B101","v":0},null,null,null,{"$f":"'Course selection list'!F101","v":0},{"$f":"'Course selection list'!K101","v":false},0]
[null,{"$f":"'Course selection list'!A102","v":0},{"$f":"'Course selection list'!B102","v":0},null,null,null,{"$f":"'Course selection list'!F102","v":0},{"$f":"'Course selection list'!K102","v":false},0]
[null,null,null,null,null,"Total ",{"$f":"SUMIF(H72:H104,TRUE,G72:G104)","v":0},true,0]
["ME-HTE Electives 2nd YEAR (15 EC)",null,null,null,null,null,null,true,0]
[null,"Course Code","Course name",null,null,null,"EC",true,0]
[null,"    ME56015P**","ME-HTE Midterm review",null,null,null,{"$f":"IF(H108,15,\"\")","v":15},true,0]
[null,"    ME56015s**","ME-HTE Internship ",null,null,null,{"$f":"IF(H109,15,\"\")","v":""},false,0]
[null,null,null,null,null,"Total ",{"$f":"SUMIF(H108:H109,TRUE,G108:G109)","v":15},true,0]
[null,"** the students chooses either ME56015S or ME56015P at the end of the first year",null,null,null,null,null,null,0]
["ME-HTE GRADUATION PROJECT (45 EC)",null,null,null,null,null,null,true,0]
[null,"Course Code","Course name",null,null,null,"EC",true,0]
[null,"ME51010-20","ME-HTE Literature Research & Project proposal",null,null,null,10,true,0]
[null,"ME56035","ME-HTE MSc Thesis",null,null,null,35,true,0]
[null,null,null,null,null,"Total ",{"$f":"SUMIF(H114:H115,TRUE,G114:G115)","v":45},true,0]
[]
[null,null,null,null,null,"Total of complete program",{"$f":"G116+G110+G105+G53+G41+G18+G45+G69","v":74},true,0]
["EC = European Credit. 1 EC = 28 hours study load",null,null,null,null,null,null,null,0]
[null,null,null,null,null,null,null,{"$f":"'Course selection list'!K109","v":0},{"$f":"IF(H120=TRUE,0,$J$1)","v":0}]
[null,null,null,null,null,null,null,{"$f":"'Course selection list'!K109","v":0},{"$f":"IF(H121=TRUE,0,$J$1)","v":0}]
[null,null,null,null,null,null,null,{"$f":"'Course selection list'!K110","v":0},{"$f":"IF(H122=TRUE,0,$J$1)","v":0}]
[null,null,null,null,null,null,null,{"$f":"'Course selection list'!K111","v":0},0]
[]
["Name of Professor:",null,null,null,"Date: ",{"$f":"TODAY()","v":"2022-09-08"},null,null,0]
["Signature Professor:",null,"Signature student:",null,null,"Examination board:",null,null,0]
[null,null,null,null,null,null,null,null,0]
[null,null,null,null,null,null,null,null,0]
[null,null,null,null,null,null,"last updated 17/8/2022",null,0]